fUSD/lending_fUSD_20240530
["ID","MTS","AMOUNT","RATE_DAILY","PERIOD"]
[328226675,1717074649763,-500.0,0.00031733,7]
[328226676,1717074649773,-833.52,0.00031733,7]
[328226677,1717074649782,-500.0,0.00031734,7]
[328226678,1717074649792,-250.0,0.00031734,7]
[328226679,1717074649801,-155.9582701,0.00032,2]
[328226680,1717074649810,-155.9582701,0.00032,2]
[328226681,1717074649819,-155.9582701,0.00032,2]
[328226682,1717074649828,-155.9582701,0.00032,2]
[328226683,1717074649837,-155.9582701,0.00032,2]
[328226684,1717074649847,-155.9582701,0.00032,2]
[328226685,1717074649855,-155.9582701,0.00032,2]
[328226686,1717074649864,-155.9582701,0.00032,2]
[328226687,1717074649874,-155.9582701,0.00032,2]
[328226688,1717074649884,-155.9582701,0.00032,2]
[328226689,1717074649894,-155.9582701,0.00032,2]
[328226690,1717074649904,-155.9582701,0.00032,2]
[328226691,1717074649914,-155.9582701,0.00032,2]
[328226692,1717074649923,-155.9582701,0.00032,2]
[328226693,1717074649933,-155.9582701,0.00032,2]
[328226694,1717074649943,-155.9582701,0.00032,2]
[328226695,1717074649952,-155.9582701,0.00032,2]
[328226696,1717074649963,-155.9582701,0.00032,2]
[328226697,1717074649972,-155.9582701,0.00032,2]
[328226698,1717074649980,-155.9582701,0.00032,2]
[328226699,1717074649989,-334.19792387,0.00032006,4]
[328226700,1717074649999,-500.0,0.00032006,7]
[328226701,1717074650008,-500.0,0.00032006,7]
[328226702,1717074650017,-500.0,0.00032006,7]
[328226703,1717074650027,-500.0,0.00032006,7]
[328226704,1717074650036,-500.0,0.00032006,7]
[328226705,1717074650045,-500.0,0.00032006,7]
[328226706,1717074650055,-999.78,0.00032006,7]
[328226707,1717074650064,-500.0,0.00032006,7]
[328226708,1717074650074,-500.0,0.00032006,7]
[328226709,1717074650083,-952.74,0.00032006,7]
[328226710,1717074650093,-500.0,0.00032006,7]
[328226711,1717074650103,-500.0,0.00032006,7]
[328226712,1717074650112,-500.0,0.00032006,7]
[328226713,1717074650121,-500.0,0.00032006,7]
[328226714,1717074650130,-500.0,0.00032006,7]
[328226715,1717074650139,-538.28,0.00032006,7]
[328226716,1717074650149,-500.0,0.00032006,7]
[328226717,1717074650158,-1121.16,0.00032006,7]
[328226718,1717074650167,-1439.93,0.00032006,7]
[328226719,1717074650176,-500.0,0.00032006,7]
[328226720,1717074650187,-500.0,0.00032006,7]
[328226721,1717074650196,-500.0,0.00032006,7]
[328226722,1717074650205,-500.0,0.00032007,7]
[328226723,1717074650214,-500.0,0.00032007,7]
[328226724,1717074650223,-500.0,0.00032007,7]
[328226725,1717074650232,-500.0,0.00032007,7]
[328226726,1717074650242,-505.35,0.00032007,7]
[328226727,1717074650251,-500.0,0.00032007,7]
[328226728,1717074650260,-500.0,0.00032007,7]
[328226729,1717074650269,-500.0,0.00032007,7]
[328226730,1717074650279,-956.3,0.00032007,7]
[328226731,1717074650288,-500.0,0.00032007,7]
[328226732,1717074650297,-833.52,0.00032007,7]
[328226733,1717074650307,-274.83609739,0.00032008,7]
[328226734,1717074650319,-250.0,0.00032008,7]
[328226735,1717074650328,-1904.0,0.000322,2]
[328226736,1717074650338,-2595.55757978,0.00032204,2]
[328226737,1717074650347,-500.0,0.0003228,7]
[328226738,1717074650358,-500.0,0.0003228,7]
[328226739,1717074650368,-500.0,0.0003228,7]
[328226740,1717074650377,-500.0,0.0003228,7]
[328226741,1717074650387,-500.0,0.0003228,7]
[328226742,1717074650398,-500.0,0.0003228,7]
[328226743,1717074650408,-999.78,0.0003228,7]
[328226744,1717074650417,-500.0,0.0003228,7]
[328226745,1717074650427,-500.0,0.0003228,7]
[328226746,1717074650436,-952.74,0.0003228,7]
[328226747,1717074650446,-500.0,0.0003228,7]
[328226748,1717074650455,-556.18,0.0003228,7]
[328226749,1717074650464,-568.93170533,0.0003228,7]
[328226750,1717074650474,-500.0,0.0003228,7]
[328226751,1717074650484,-339.45,0.0003228,7]
[328226752,1717074650493,-538.28,0.0003228,7]
[328226753,1717074650503,-500.0,0.0003228,7]
[328226754,1717074650512,-1121.16,0.0003228,7]
[328226755,1717074650521,-1439.93,0.0003228,7]
[328226756,1717074650530,-500.0,0.0003228,7]
[328226757,1717074650540,-500.0,0.0003228,7]
[328226758,1717074650549,-500.0,0.0003228,7]
[328226759,1717074650558,-500.0,0.00032281,7]
[328226760,1717074650567,-500.0,0.00032281,7]
[328226761,1717074650577,-500.0,0.00032281,7]
[328226762,1717074650587,-500.0,0.00032281,7]
[328226763,1717074650596,-505.35,0.00032281,7]
[328226764,1717074650605,-500.0,0.00032281,7]
[328226765,1717074650614,-500.0,0.00032281,7]
[328226766,1717074650624,-500.0,0.00032281,7]
[328226767,1717074650634,-956.3,0.00032281,7]
[328226768,1717074650644,-500.0,0.00032281,7]
[328226769,1717074650653,-833.52,0.00032281,7]
[328226770,1717074650663,-250.0,0.00032282,7]
[328226771,1717074650674,-172.52,0.00032316,2]
[328226772,1717074650684,-1741.34,0.00032329,2]
[328226773,1717074650694,-831.4,0.00032329,2]
[328226774,1717074650703,-421.16,0.00032466,2]
[328226775,1717074650712,-300.75,0.00032466,2]
[328226776,1717074650721,-207.71,0.00032466,2]
[328226777,1717074650732,-500.0,0.00032554,7]
[328226778,1717074650741,-155.92,0.00032554,7]
[328226779,1717074650751,-500.0,0.00032554,7]
[328226780,1717074650761,-356.2,0.00032554,7]
[328226781,1717074650771,-500.0,0.00032554,7]
[328226782,1717074650780,-500.0,0.00032554,7]
[328226783,1717074650794,-999.78,0.00032554,7]
[328226784,1717074650808,-500.0,0.00032554,7]
[328226785,1717074650820,-500.0,0.00032554,7]
[328226786,1717074650834,-952.74,0.00032554,7]
[328226787,1717074650847,-450.11,0.00032554,7]
[328226788,1717074650858,-500.0,0.00032554,7]
[328226789,1717074650868,-538.28,0.00032554,7]
[328226790,1717074650879,-500.0,0.00032554,7]
[328226791,1717074650892,-1121.16,0.00032554,7]
[328226792,1717074650903,-1439.93,0.00032554,7]
[328226793,1717074650915,-500.0,0.00032554,7]
[328226794,1717074650926,-500.0,0.00032554,7]
[328226795,1717074650940,-500.0,0.00032554,7]
[328226796,1717074650950,-500.0,0.00032555,7]
[328226797,1717074650963,-500.0,0.00032555,7]
[328226798,1717074650976,-500.0,0.00032555,7]
[328226799,1717074650989,-500.0,0.00032555,7]
[328226800,1717074651001,-505.35,0.00032555,7]
[328226801,1717074651012,-500.0,0.00032555,7]
[328226802,1717074651023,-592.75,0.00032555,7]
[328226803,1717074651035,-500.0,0.00032555,7]
[328226804,1717074651047,-956.3,0.00032555,7]
[328226805,1717074651058,-500.0,0.00032555,7]
[328226806,1717074651070,-833.52,0.00032555,7]
[328226807,1717074651082,-250.0,0.00032556,7]
[328226808,1717074651094,-185.51673199,0.00032667,2]
[328226809,1717074651106,-2595.55757978,0.00032702,2]
[328226810,1717074651117,-274.78,0.00032828,7]
[328226811,1717074651128,-500.0,0.00032828,7]
[328226812,1717074651138,-500.0,0.00032828,7]
[328226813,1717074651148,-500.0,0.00032828,7]
[328226814,1717074651158,-999.78,0.00032828,7]
[328226815,1717074651170,-500.0,0.00032828,7]
[328226816,1717074651181,-327.79461488,0.00032828,7]
[328226817,1717074651192,-952.74,0.00032828,7]
[328226818,1717074651204,-500.0,0.00032828,7]
[328226819,1717074651215,-538.28,0.00032828,7]
[328226820,1717074651228,-500.0,0.00032828,7]
[328226821,1717074651238,-1121.16,0.00032828,7]
[328226822,1717074651250,-1439.93,0.00032828,7]
[328226823,1717074651262,-500.0,0.00032828,7]
[328226824,1717074651274,-500.0,0.00032828,7]
[328226825,1717074651286,-500.0,0.00032828,7]
[328226826,1717074651298,-500.0,0.00032829,7]
[328226827,1717074651310,-500.0,0.00032829,7]
[328226828,1717074651323,-500.0,0.00032829,7]
[328226829,1717074651333,-500.0,0.00032829,7]
[328226830,1717074651344,-505.35,0.00032829,7]
[328226831,1717074651355,-500.0,0.00032829,7]
[328226832,1717074651365,-282.6,0.00032829,7]
[328226833,1717074651376,-956.3,0.00032829,7]
[328226834,1717074651387,-500.0,0.00032829,7]
[328226835,1717074651402,-833.52,0.00032829,7]
[328226836,1717074651413,-250.0,0.0003283,7]
[328226837,1717074651424,-5552.64588132,0.000329,2]
[328226838,1717074651437,-165.4292042,0.000329,4]
[328226839,1717074651446,-1765.95132825,0.000329,4]
[328226840,1717074651455,-1765.95132817,0.00032927,4]
[328226841,1717074651465,-1765.95132817,0.00032955,4]
[328226842,1717074651475,-238.32802527,0.00032976,5]
[328226843,1717074651487,-238.32802524,0.00032976,5]
[328226844,1717074651498,-1765.95132817,0.00032982,5]
[328226845,1717074651512,-555.55555,0.00032985,2]
[328226846,1717074651523,-265.95533731,0.00032996,2]
[328226847,1717074651535,-430.0637463,0.00032998,4]
[328226848,1717074651546,-3010.74416602,0.00032998,4]
[328226849,1717074651557,-155.0,0.00032998,4]
[328226850,1717074651567,-155.0,0.00032998,4]
[328226851,1717074651578,-326.15186733,0.00032998,4]
[328226852,1717074651588,-155.5729,0.00032998,4]
[328226853,1717074651598,-195.02071198,0.00032998,4]
[328226854,1717074651609,-10934.72962016,0.00032998,4]
[328226855,1717074651619,-225.74864792,0.00032998,4]
[328226856,1717074651630,-573.93237961,0.00032998,7]
[328226857,1717074651640,-155.0,0.00032998,4]
[328226858,1717074651650,-1249.88651912,0.00032998,4]
[328226859,1717074651661,-3438.1127248,0.00032998,2]
[328226860,1717074651671,-226.3668805,0.00032998,4]
[328226861,1717074651682,-155.0,0.00032998,2]
[328226862,1717074651694,-1382.31585796,0.00032998,4]
[328226863,1717074651705,-447.21719507,0.00032998,4]
[328226864,1717074651715,-979.91116516,0.00032999,4]
[328226865,1717074651725,-280.16615886,0.00032999,4]
[328226866,1717074651736,-156.0,0.00033,5]
[328226867,1717074651746,-250.0,0.00033,7]
[328226868,1717074651756,-5320.07122324,0.00033,4]
[328226869,1717074651767,-15102.76328004,0.00033,2]
[328226870,1717074651778,-977.44378712,0.00033,2]
[328226871,1717074651788,-500.0,0.00033,2]
[328226872,1717074651798,-6712.83155207,0.00033,2]
[328226873,1717074651809,-237.26982006,0.00033,4]
[328226874,1717074651819,-280.0,0.00033,2]
[328226875,1717074651830,-500.42891215,0.00033,2]
[328226876,1717074651841,-7151.39667841,0.00033,5]
[328226877,1717074651852,-5107.0,0.00033,6]
[328226878,1717074651863,-2020.9836941,0.00033,2]
[328226879,1717074651874,-1765.95132817,0.00033009,5]
[328226880,1717074651884,-1765.95132817,0.00033036,5]
[328226881,1717074651895,-1765.95132817,0.00033064,5]
[328226882,1717074651906,-1765.95132817,0.00033091,5]
[328226883,1717074651917,-500.0,0.00033102,7]
[328226884,1717074651927,-500.0,0.00033102,7]
[328226885,1717074651939,-500.0,0.00033102,7]
[328226886,1717074651950,-999.78,0.00033102,7]
[328226887,1717074651960,-500.0,0.00033102,7]
[328226888,1717074651970,-952.74,0.00033102,7]
[328226889,1717074651980,-500.0,0.00033102,7]
[328226890,1717074651990,-538.28,0.00033102,7]
[328226891,1717074652001,-289.9,0.00033102,7]
[328226892,1717074652011,-1121.16,0.00033102,7]
[328226893,1717074652022,-1439.93,0.00033102,7]
[328226894,1717074652032,-500.0,0.00033102,7]
[328226895,1717074652042,-500.0,0.00033102,7]
[328226896,1717074652052,-500.0,0.00033102,7]
[328226897,1717074652063,-496.03102842,0.00033103,7]
[328226898,1717074652073,-500.0,0.00033103,7]
[328226899,1717074652084,-500.0,0.00033103,7]
[328226900,1717074652095,-500.0,0.00033103,7]
[328226901,1717074652105,-505.35,0.00033103,7]
[328226902,1717074652116,-500.0,0.00033103,7]
[328226903,1717074652126,-956.3,0.00033103,7]
[328226904,1717074652137,-580.1632511,0.00033103,7]
[328226905,1717074652147,-833.52,0.00033103,7]
[328226906,1717074652157,-250.0,0.00033104,7]
[328226907,1717074652168,-156.04668196,0.0003311,2]
[328226908,1717074652178,-1765.95132817,0.00033118,5]
[328226909,1717074652190,-1765.95132817,0.00033145,5]
[328226910,1717074652201,-1765.95132817,0.00033173,5]
[328226911,1717074652211,-5800.0,0.00033175,2]
[328226912,1717074652222,-5800.0,0.00033183,2]
[328226913,1717074652232,-5800.0,0.00033192,2]
[328226914,1717074652243,-158.02363781,0.000332,7]
[328226915,1717074652253,-158.02363781,0.000332,7]
[328226916,1717074652264,-158.02363781,0.000332,7]
[328226917,1717074652274,-158.02363781,0.000332,7]
[328226918,1717074652284,-158.02363781,0.000332,7]
[328226919,1717074652294,-158.02363781,0.000332,7]
[328226920,1717074652305,-158.02363781,0.000332,7]
[328226921,1717074652317,-158.02363781,0.000332,7]
[328226922,1717074652329,-158.02363781,0.000332,7]
[328226923,1717074652340,-158.02363781,0.000332,7]
[328226924,1717074652350,-158.02363781,0.000332,7]
[328226925,1717074652361,-158.02363781,0.000332,7]
[328226926,1717074652371,-158.02363781,0.000332,7]
[328226927,1717074652382,-158.02363781,0.000332,7]
[328226928,1717074652392,-158.02363781,0.000332,7]
[328226929,1717074652404,-158.02363781,0.000332,7]
[328226930,1717074652414,-158.52,0.000332,7]
[328226931,1717074652424,-537.35536856,0.000332,7]
[328226932,1717074652435,-537.35536856,0.000332,7]
[328226933,1717074652446,-537.35536856,0.000332,7]
[328226934,1717074652456,-537.35536856,0.000332,7]
[328226935,1717074652466,-537.35536856,0.000332,7]
[328226936,1717074652476,-537.35536856,0.000332,7]
[328226937,1717074652487,-537.35536856,0.000332,7]
[328226938,1717074652497,-537.35536856,0.000332,7]
[328226939,1717074652508,-537.35536856,0.000332,7]
[328226940,1717074652519,-537.35536856,0.000332,7]
[328226941,1717074652529,-537.35536856,0.000332,7]
[328226942,1717074652539,-537.35536856,0.000332,7]
[328226943,1717074652548,-537.35536856,0.000332,7]
[328226944,1717074652557,-537.35536856,0.000332,7]
[328226945,1717074652737,-537.35536856,0.000332,7]
[328226946,1717074652747,-537.35536856,0.000332,7]
[328226947,1717074652756,-537.35536856,0.000332,7]
[328226948,1717074652765,-537.35536856,0.000332,7]
[328226949,1717074652774,-537.35536856,0.000332,7]
[328226950,1717074652784,-537.85,0.000332,7]
[328226951,1717074652793,-175.14221393,0.000332,7]
[328226952,1717074652802,-175.14221393,0.000332,7]
[328226953,1717074652811,-175.64,0.000332,7]
[328226954,1717074652820,-150.22904051,0.000332,7]
[328226955,1717074652829,-150.22904051,0.000332,7]
[328226956,1717074652838,-150.22904051,0.000332,7]
[328226957,1717074652847,-150.22904051,0.000332,7]
[328226958,1717074652856,-150.22904051,0.000332,7]
[328226959,1717074652865,-150.22904051,0.000332,7]
[328226960,1717074652874,-150.22904051,0.000332,7]
[328226961,1717074652883,-150.22904051,0.000332,7]
[328226962,1717074652892,-150.22904051,0.000332,7]
[328226963,1717074652902,-150.22904051,0.000332,7]
[328226964,1717074652911,-150.22904051,0.000332,7]
[328226965,1717074652920,-150.22904051,0.000332,7]
[328226966,1717074652930,-150.22904051,0.000332,7]
[328226967,1717074652941,-150.72,0.000332,7]
[328226968,1717074652950,-160.33689502,0.000332,7]
[328226969,1717074652959,-160.33689502,0.000332,7]
[328226970,1717074652968,-160.33689502,0.000332,7]
[328226971,1717074652977,-160.33689502,0.000332,7]
[328226972,1717074652986,-160.33689502,0.000332,7]
[328226973,1717074652996,-160.33689502,0.000332,7]
[328226974,1717074653006,-160.33689502,0.000332,7]
[328226975,1717074653015,-160.33689502,0.000332,7]
[328226976,1717074653025,-160.33689502,0.000332,7]
[328226977,1717074653034,-160.33689502,0.000332,7]
[328226978,1717074653044,-160.33689502,0.000332,7]
[328226979,1717074653055,-160.33689502,0.000332,7]
[328226980,1717074653065,-160.33689502,0.000332,7]
[328226981,1717074653074,-160.33689502,0.000332,7]
[328226982,1717074653083,-160.33689502,0.000332,7]
[328226983,1717074653093,-160.33689502,0.000332,7]
[328226984,1717074653102,-160.33689502,0.000332,7]
[328226985,1717074653111,-160.33689502,0.000332,7]
[328226986,1717074653120,-160.33689502,0.000332,7]
[328226987,1717074653130,-160.83,0.000332,7]
[328226988,1717074653139,-641.42258009,0.000332,7]
[328226989,1717074653148,-641.42258009,0.000332,7]
[328226990,1717074653157,-641.42258009,0.000332,7]
[328226991,1717074653167,-641.42258009,0.000332,7]
[328226992,1717074653176,-641.42258009,0.000332,7]
[328226993,1717074653187,-641.42258009,0.000332,7]
[328226994,1717074653197,-641.42258009,0.000332,7]
[328226995,1717074653206,-641.42258009,0.000332,7]
[328226996,1717074653215,-641.42258009,0.000332,7]
[328226997,1717074653224,-641.42258009,0.000332,7]
[328226998,1717074653233,-641.42258009,0.000332,7]
[328226999,1717074653243,-641.42258009,0.000332,7]
[328227000,1717074653252,-641.42258009,0.000332,7]
[328227001,1717074653261,-641.42258009,0.000332,7]
[328227002,1717074653270,-641.42258009,0.000332,7]
[328227003,1717074653279,-641.42258009,0.000332,7]
[328227004,1717074653288,-641.42258009,0.000332,7]
[328227005,1717074653297,-641.42258009,0.000332,7]
[328227006,1717074653307,-641.42258009,0.000332,7]
[328227007,1717074653321,-641.92,0.000332,7]
[328227008,1717074653330,-5800.0,0.000332,2]
[328227009,1717074653339,-1765.95132817,0.000332,5]
[328227010,1717074653348,-5800.0,0.000332,2]
[328227011,1717074653358,-376.73489284,0.000332,2]
[328227012,1717074653367,-157.52043791,0.000332,7]
[328227013,1717074653377,-157.52043791,0.000332,7]
[328227014,1717074653387,-157.52043791,0.000332,7]
[328227015,1717074653396,-157.52043791,0.000332,7]
[328227016,1717074653405,-157.52043791,0.000332,7]
[328227017,1717074653414,-157.52043791,0.000332,7]
[328227018,1717074653423,-157.52043791,0.000332,7]
[328227019,1717074653433,-157.52043791,0.000332,7]
[328227020,1717074653443,-157.52043791,0.000332,7]
[328227021,1717074653452,-157.52043791,0.000332,7]
[328227022,1717074653461,-157.52043791,0.000332,7]
[328227023,1717074653470,-157.52043791,0.000332,7]
[328227024,1717074653480,-157.52043791,0.000332,7]
[328227025,1717074653490,-158.02,0.000332,7]
[328227026,1717074653499,-441.13222614,0.000332,7]
[328227027,1717074653510,-441.13222614,0.000332,7]
[328227028,1717074653519,-441.13222614,0.000332,7]
[328227029,1717074653530,-441.13222614,0.000332,7]
[328227030,1717074653540,-441.13222614,0.000332,7]
[328227031,1717074653550,-441.13222614,0.000332,7]
[328227032,1717074653559,-441.13222614,0.000332,7]
[328227033,1717074653568,-441.13222614,0.000332,7]
[328227034,1717074653578,-441.13222614,0.000332,7]
[328227035,1717074653587,-441.13222614,0.000332,7]
[328227036,1717074653595,-441.13222614,0.000332,7]
[328227037,1717074653604,-441.13222614,0.000332,7]
[328227038,1717074653613,-441.13222614,0.000332,7]
[328227039,1717074653622,-441.13222614,0.000332,7]
[328227040,1717074653630,-441.13222614,0.000332,7]
[328227041,1717074653639,-441.13222614,0.000332,7]
[328227042,1717074653648,-441.13222614,0.000332,7]
[328227043,1717074653657,-441.13222614,0.000332,7]
[328227044,1717074653666,-441.13222614,0.000332,7]
[328227045,1717074653675,-441.63,0.000332,7]
[328227046,1717074653686,-321.06585345,0.000332,2]
[328227047,1717074653695,-458.94382065,0.000332,2]
[328227048,1717074653704,-338.67706681,0.000332,2]
[328227049,1717074653714,-350.25849402,0.000332,2]
[328227050,1717074653723,-1273.38810266,0.000332,2]
[328227051,1717074653732,-2595.55757978,0.000332,2]
[328227052,1717074653741,-8188.20121944,0.000332,2]
[328227053,1717074653750,-233.97,0.0003326,2]
[328227054,1717074653759,-1245.82158304,0.00033298,4]
[328227055,1717074653768,-154.57211479,0.00033299,7]
[328227056,1717074653777,-151.15083548,0.000333,2]
[328227057,1717074653785,-1198.33879473,0.000333,5]
[328227058,1717074653794,-320138.80363536,0.000333,5]
[328227059,1717074653892,-500.0,0.00029814,7]
[328227060,1717074653902,-10707.34208662,0.000333,5]
[328227061,1717074653913,-2814.57943828,0.000333,5]
[328227062,1717074653924,-3020.84705342,0.000333,5]
[328227063,1717074653935,-5894.29421803,0.000333,5]
[328227064,1717074653946,-10697.73800629,0.000333,5]
[328227065,1717074653957,-2601.04294795,0.000333,5]
[328227066,1717074653968,-2390.98275657,0.000333,5]
[328227067,1717074654136,-500.0,0.0002954,7]
[328227068,1717074654146,-500.0,0.00029814,7]
[328227069,1717074654156,-500.0,0.00030088,7]
[328227070,1717074654166,-500.0,0.00030088,7]
[328227071,1717074654175,-500.0,0.00030362,7]
[328227072,1717074654187,-500.0,0.00030362,7]
[328227073,1717074654196,-500.0,0.00030636,7]
[328227074,1717074654205,-427.46554873,0.00030636,7]
[328227075,1717074654214,-500.0,0.0003091,7]
[328227076,1717074654223,-500.0,0.00031184,7]
[328227077,1717074654232,-356.71107853,0.00031208,2]
[328227078,1717074654242,-500.0,0.00031458,7]
[328227079,1717074654251,-226.88934799,0.00031732,7]
[328227080,1717074654268,-273.11065201,0.00031732,7]
[328227081,1717074654277,-137.68234799,0.00032006,7]
[328227082,1717074662503,1010.82077161,0.00046575,10]
[328227083,1717074667727,151.0,0.00039,14]
[328227084,1717074668060,151.0,0.00043,14]
[328227085,1717074675643,471.11623912,0.0004657,10]
[328227086,1717074691507,5465.22216534,0.000332,10]
[328227087,1717074707822,21032.09548155,0.0004657,10]
[328227088,1717074718345,1000.0,0.0004657,120]
[328227089,1717074738319,150.08204805,0.00040846,30]
[328227090,1717074740269,151.0,0.00039,14]
[328227091,1717074740599,151.0,0.00043,14]
[328227092,1717074751284,150.61262183,0.00041758,30]
[328227093,1717074751938,150.61262183,0.0004336,30]
[328227094,1717074755462,500.0,0.0004654,60]
[328227095,1717074758941,151.0,0.00039,14]
[328227096,1717074759916,151.0,0.00043,14]
[328227097,1717074763146,151.0,0.00039,14]
[328227098,1717074763405,151.0,0.00043,14]
[328227099,1717074775615,1003.14484786,0.0004654,120]
[328227100,1717074828677,250.0,0.0004653,60]
[328227101,1717074834190,151.68546618,0.0004649,120]
[328227102,1717074869814,151.0,0.0003948,14]
[328227103,1717074870136,151.0,0.00043,14]
[328227104,1717074870453,151.0,0.00046575,14]
[328227105,1717074875857,181.51,0.0003058,120]
[328227106,1717074943308,151.0,0.00039,14]
[328227107,1717074943639,151.0,0.00043,14]
[328227111,1717075032900,155.42,0.00013973,2]
[328227112,1717075050536,193.80470629,0.00045275,30]
[328227113,1717075052330,150.61262183,0.0004271,30]
[328227114,1717075065384,410.2719242,0.00013973,2]
[328227115,1717075067314,362.51321978,0.00013973,2]
[328227116,1717075070118,24641.78950231,0.00013973,2]
[328227117,1717075070905,19751.57634227,0.00013973,2]
[328227118,1717075071653,462.96296,0.0004297,16]
[328227119,1717075071737,462.96297,0.0004547,28]
[328227120,1717075074160,155.0,0.00013973,2]
[328227121,1717075079359,410.81989867,0.00013973,2]
[328227122,1717075083308,362.51321978,0.00013973,2]
[328227123,1717075084840,19774.19819981,0.00013973,2]
[328227124,1717075086113,24641.78950231,0.00013973,2]
[328227125,1717075094160,155.0,0.00013973,2]
[328227126,1717075099349,362.17970392,0.00013973,2]
[328227127,1717075099912,344.81579666,0.00046,120]
[328227128,1717075106141,24641.78950231,0.00013973,2]
[328227129,1717075109031,729.37,0.00046575,15]
[328227130,1717075116980,151.0,0.00039,14]
[328227131,1717075117332,151.0,0.00043,14]
[328227134,1717075202714,630620.78325213,0.00035,30]
[328227168,1717075832198,-161.09665523,0.00017052,2]
[328227169,1717075832207,-4605.39676169,0.00017149,2]
[328227170,1717075832219,-4463.0,0.0001715,2]
[328227171,1717075832229,-155.0,0.00017259,2]
[328227172,1717075832238,-150.0,0.00017259,2]
[328227173,1717075832248,-439.0,0.00027,3]
[328227174,1717075832258,-226.61,0.00027191,2]
[328227175,1717075832267,-250.0,0.000281,2]
[328227176,1717075832277,-423.81,0.00028558,2]
[328227177,1717075832286,-464.0,0.00028745,2]
[328227178,1717075832296,-226.61,0.00029454,2]
[328227179,1717075832306,-500.0,0.00029541,7]
[328227180,1717075832316,-452.19863709,0.00029635,2]
[328227181,1717075832325,-154.0257,0.00029714,2]
[328227182,1717075832334,-161.09665523,0.00029715,2]
[328227183,1717075832343,-500.0,0.00029815,7]
[328227184,1717075832353,-2718.43034748,0.00029968,2]
[328227185,1717075832362,-500.0,0.00030089,7]
[328227186,1717075832371,-445.0,0.00030208,2]
[328227187,1717075832381,-808.0,0.00030208,2]
[328227188,1717075832390,-1294.0,0.00030208,2]
[328227189,1717075832399,-1651.0,0.00030208,2]
[328227190,1717075832409,-216.0,0.00030208,2]
[328227191,1717075832418,-3160.0,0.00030208,2]
[328227192,1717075832427,-545.0,0.00030208,2]
[328227193,1717075832436,-500.0,0.00030363,7]
[328227194,1717075832445,-7500.0,0.0003048,2]
[328227195,1717075832454,-162.43403892,0.0003048,2]
[328227196,1717075832465,-500.0,0.00030579,7]
[328227197,1717075832474,-500.0,0.00030579,7]
[328227198,1717075832484,-500.0,0.00030579,7]
[328227199,1717075832493,-500.0,0.00030579,7]
[328227200,1717075832502,-500.0,0.00030579,7]
[328227201,1717075832511,-500.0,0.00030579,7]
[328227202,1717075832520,-500.0,0.00030579,7]
[328227203,1717075832529,-500.0,0.00030579,7]
[328227204,1717075832538,-500.0,0.00030579,7]
[328227205,1717075832547,-500.0,0.00030579,7]
[328227206,1717075832557,-500.0,0.00030579,7]
[328227207,1717075832566,-500.0,0.00030579,7]
[328227208,1717075832575,-627.76999998,0.00030579,7]
[328227209,1717075832584,-500.0,0.00030579,7]
[328227210,1717075832593,-500.0,0.00030579,7]
[328227211,1717075832602,-599.98,0.00030579,7]
[328227212,1717075832612,-500.0,0.00030579,7]